bitfinex-derivatives/quotes_SOLF0:USTF0_20241101
["timestamp","ask_amount","ask_price","bid_price","bid_amount"]
[1730446120421,3.0157,165.92,165.86,13.04399834]
[1730446120422,3.0157,165.92,165.88,3.0164]
[1730446120826,3.02,165.96,165.86,13.04399834]
[1730446121015,3.0155,165.94,165.9,3.016]
[1730446122024,2.6375,165.97,165.91,3.0158]
[1730446122025,3.0152,165.95,165.91,3.0158]
[1730446123330,1.3041,165.97,165.9,4.4091]
[1730446123517,3.0151,165.96,165.92,3.0156]
[1730446124418,3.0152,165.95,165.93,8.3446819]
[1730446124818,3.0152,165.95,165.92,3.0156]
[1730446125017,3.0152,165.95,165.92,8.3446819]
[1730446128534,8.3446819,165.96,165.9,9.7337819]
[1730446128834,3.0155,165.93,165.9,11.3607819]
[1730446129633,3.0154,165.94,165.9,11.3607819]
[1730446132636,3.0154,165.94,165.91,3.0159]
[1730446133549,3.0151,165.96,165.93,8.3446819]
[1730446134743,3.0151,165.96,165.93,11.3600819]
[1730446135632,3.0151,165.96,165.93,3.0154]
[1730446136741,3.0155,165.93,165.9,8.3446819]
[1730446137743,3.0155,165.93,165.9,11.3606819]
[1730446138542,3.0156,165.93,165.9,8.3446819]
[1730446139637,8.3446819,165.96,165.9,11.3606819]
[1730446139837,3.0154,165.94,165.9,11.3606819]
[1730446141145,3.0152,165.95,165.92,3.0157]
[1730446141449,3.0152,165.95,165.9,8.3446819]
[1730446141929,3.0152,165.95,165.91,3.0159]
[1730446142336,3.0154,165.94,165.91,3.0159]
[1730446142529,8.3446819,165.96,165.89,11.3608819]
[1730446142734,8.3446819,165.94,165.88,3.02]
[1730446142945,3.0159,165.92,165.88,3.02]
[1730446143139,3.0159,165.92,165.88,6.0363]
[1730446143335,8.3446819,165.93,165.87,8.3446819]
[1730446143541,8.3446819,165.93,165.86,8.3446819]
[1730446144153,9.6129819,165.94,165.88,11.3609819]
[1730446144446,1.3861,165.95,165.89,8.3446819]
[1730446145051,3.0155,165.94,165.89,8.3446819]
[1730446146131,3.0155,165.94,165.9,3.016]
[1730446151036,3.0152,165.96,165.93,3.0155]
[1730446151238,8.3446819,165.98,165.91,8.3446819]
[1730446151451,8.3446819,165.96,165.91,8.3446819]
[1730446151654,3.0152,165.95,165.91,11.3603819]
[1730446152040,3.0152,165.95,165.91,8.3446819]
[1730446153348,3.0152,165.95,165.92,3.0157]
[1730446155643,3.0157,165.93,165.89,3.0161]
[1730446156047,8.3446819,165.95,165.88,8.3446819]
[1730446156957,3.0157,165.92,165.89,3.0163]
[1730446157144,8.3446819,165.95,165.89,3.0163]
[1730446157543,3.0156,165.93,165.89,3.0163]
[1730446158355,8.3446819,165.96,165.89,8.3446819]
[1730446158549,3.0152,165.95,165.91,3.0159]
[1730446159444,3.0152,165.95,165.91,11.3605819]
[1730446160750,11.3596819,165.96,165.92,3.0156]
[1730446161050,11.3596819,165.96,165.89,3.07951787]
[1730446161051,8.3446819,165.95,165.9,8.3446819]
[1730446161455,11.3598819,165.95,165.91,3.0158]
[1730446162358,3.0155,165.93,165.9,11.3606819]
[1730446162958,8.3446819,165.95,165.9,11.3606819]
[1730446163264,3.0154,165.94,165.9,11.3606819]
[1730446168058,3.0159,165.92,165.89,3.02]
[1730446168258,3.0159,165.92,165.88,11.3610819]
[1730446169466,3.0159,165.92,165.88,8.3446819]
[1730446169761,8.3446819,165.94,165.91,8.3446819]
[1730446169762,3.0154,165.94,165.91,8.3446819]
[1730446169969,8.3446819,165.96,165.91,8.3446819]
[1730446170156,1.2591,165.99,165.91,8.3446819]
[1730446170157,8.3446819,165.98,165.91,8.3446819]
[1730446171367,8.3446819,165.98,165.92,3.0156]
[1730446171368,3.0152,165.95,165.92,3.0156]
[1730446172265,11.3598819,165.95,165.9,8.3446819]
[1730446172572,11.3598819,165.95,165.91,3.0158]
[1730446176365,3.0156,165.93,165.9,8.3446819]
[1730446177064,8.3446819,165.95,165.92,3.0157]
[1730446177465,8.3446819,165.95,165.9,8.3446819]
[1730446178075,11.3599819,165.95,165.91,3.0158]
[1730446182164,8.3446819,165.95,165.91,3.0158]
[1730446182473,3.0154,165.94,165.91,3.0158]
[1730446190284,3.0156,165.93,165.9,3.016]
[1730446190487,3.0156,165.93,165.88,12.6700819]
[1730446190781,3.0156,165.93,165.88,11.3646819]
[1730446190979,3.0156,165.93,165.89,3.0161]
[1730446194283,3.0156,165.93,165.9,8.3446819]
[1730446194683,3.0156,165.93,165.9,11.3606819]
[1730446195686,8.3446819,165.97,165.91,8.3446819]
[1730446195880,3.0151,165.96,165.92,3.0156]
[1730446196679,8.3446819,165.97,165.92,3.0156]
[1730446196680,3.0152,165.95,165.92,3.0156]
[1730446197982,3.0152,165.95,165.91,11.3604819]
[1730446200279,8.3446819,165.97,165.92,3.0157]
[1730446200888,8.3446819,165.95,165.9,11.3605819]
[1730446201594,3.0154,165.94,165.91,3.0159]
[1730446203294,8.3446819,165.95,165.9,8.3446819]
[1730446203482,3.02,166.0,165.94,8.3446819]
[1730446203483,9.07531732,165.97,165.94,8.3446819]
[1730446203790,8.3446819,166.0,165.95,8.3446819]
[1730446203984,3.0147,165.98,165.95,8.3446819]
[1730446205005,3.0153,165.95,165.91,12.6831819]
[1730446205293,8.3446819,165.96,165.91,12.6872819]
[1730446205487,8.3446819,165.96,165.91,9.6672819]
[1730446205680,3.0156,165.93,165.9,3.02]
[1730446206287,3.0156,165.93,165.9,6.036]
[1730446207796,3.0156,165.93,165.9,3.02]
[1730446209391,8.3446819,165.96,165.9,3.02]
[1730446209696,11.3646819,165.98,165.92,8.3446819]
[1730446209903,8.3446819,165.98,165.92,8.3446819]
[1730446210295,8.3446819,165.98,165.93,3.0155]
[1730446210494,8.3446819,165.98,165.92,8.3446819]
[1730446210900,3.0148,165.97,165.93,3.0154]
[1730446211199,9.07437369,165.99,165.94,8.3446819]
[1730446211504,8.3446819,166.0,165.96,11.3594819]
[1730446211505,3.0144,166.0,165.96,11.3594819]
[1730446212501,3.0144,166.0,165.96,3.0148]
[1730446213001,3.0144,166.0,165.96,11.3594819]
[1730446214093,3.0138,166.03,165.99,11.3590819]
[1730446214507,19.33817217,166.05,166.0,8.3446819]
[1730446214695,22.35167217,166.05,166.02,8.3446819]
[1730446214998,3.0135,166.05,166.02,8.3446819]
[1730446215205,4.3458,166.08,166.04,8.3446819]
[1730446215408,9.06693181,166.08,166.04,8.3446819]
[1730446215597,18.68951371,166.09,166.04,8.3446819]
[1730446215793,13.35763181,166.09,166.05,8.3446819]
[1730446216399,4.2907,166.09,166.05,8.3446819]
[1730446216600,3.0128,166.09,166.05,8.3446819]
[1730446216903,3.0125,166.1,166.06,8.3446819]
[1730446219298,3.0125,166.1,166.06,11.3577819]
[1730446220000,3.0127,166.09,166.05,8.3446819]
[1730446221406,3.0127,166.09,166.05,11.3579819]
[1730446221602,3.0128,166.08,166.05,8.3446819]
[1730446221803,8.3446819,166.09,166.04,8.3446819]
[1730446222209,8.3446819,166.09,166.03,3.0]
[1730446222210,3.0135,166.05,166.02,8.3446819]
[1730446222417,3.8052,166.13,166.01,8.3446819]
[1730446222418,8.3446819,166.06,166.01,8.3446819]
[1730446222600,8.3446819,166.05,165.99,11.3446819]
[1730446223200,3.0139,166.03,165.99,11.3446819]
[1730446223398,8.3446819,166.06,166.01,8.3446819]
[1730446223810,3.0136,166.04,166.01,8.3446819]
[1730446224510,3.0131,166.07,166.02,8.3446819]
[1730446224710,8.3446819,166.08,166.02,8.3446819]
[1730446225511,3.0133,166.06,166.02,8.3446819]
[1730446225707,3.0133,166.06,166.02,11.3585819]
[1730446226109,3.0135,166.05,166.0,11.3587819]
[1730446226312,3.0135,166.05,166.0,8.3446819]
[1730446226515,8.3446819,166.08,166.02,8.3446819]
[1730446227807,3.0131,166.07,166.03,3.0137]
[1730446228309,3.0131,166.07,166.01,3.0141]
[1730446228310,3.0135,166.05,166.01,3.0141]
[1730446228512,8.3446819,166.07,166.01,3.0141]
[1730446228713,8.3446819,166.05,166.0,8.3446819]
[1730446230311,3.0136,166.04,166.0,11.3588819]
[1730446230917,8.3446819,166.08,166.02,8.3446819]
[1730446231223,11.3446819,166.1,166.04,8.3446819]
[1730446231614,3.013,166.07,166.04,8.3446819]
[1730446232517,3.013,166.07,166.03,3.0136]
[1730446241528,8.3446819,166.05,165.99,8.3446819]
[1730446241726,8.3446819,166.05,165.99,11.3446819]
[1730446242023,3.0138,166.03,166.0,3.0142]
[1730446242218,3.0138,166.03,166.01,8.3446819]
[1730446244029,3.0136,166.04,166.01,8.3446819]
[1730446245927,8.3446819,166.06,166.02,8.3446819]
[1730446245928,3.0132,166.06,166.02,8.3446819]
[1730446246135,4.0825,166.13,166.04,8.3446819]
[1730446246136,8.3446819,166.09,166.04,8.3446819]
[1730446246518,3.0128,166.08,166.05,11.3579819]
[1730446247329,3.0128,166.08,166.05,8.3446819]
[1730446248115,8.3446819,166.08,166.03,8.3446819]
[1730446248317,3.0134,166.05,166.02,8.3446819]
[1730446248516,8.3446819,166.07,166.02,8.3446819]
[1730446248719,3.0133,166.06,166.02,11.3584819]
[1730446248932,3.0133,166.06,166.03,8.3446819]
[1730446250114,3.013,166.08,166.05,8.3446819]
[1730446250324,8.3446819,166.11,166.05,8.3446819]
[1730446251128,8.3446819,166.11,166.02,1.2998]
[1730446251129,8.3446819,166.09,166.03,8.3446819]
[1730446251330,3.013,166.07,166.03,8.3446819]
[1730446252236,3.013,166.07,166.03,11.3583819]
[1730446253834,3.0127,166.09,166.05,11.3579819]
[1730446255430,8.3446819,166.11,166.05,8.3446819]
[1730446255631,3.0131,166.07,166.04,8.3446819]
[1730446256742,3.0132,166.06,166.03,6.0137]
[1730446257945,8.3446819,166.08,166.03,3.0]
[1730446258134,8.3446819,166.08,166.02,11.3584819]
[1730446258334,8.3446819,166.08,166.02,8.3446819]
[1730446258640,1.082,166.11,166.01,11.3586819]
[1730446258641,3.0134,166.05,166.01,11.3586819]
[1730446259142,3.0134,166.05,166.02,8.3446819]
[1730446259641,1.082,166.11,165.98,4.29777051]
[1730446259642,3.0137,166.04,166.0,14.3588819]
[1730446260349,3.0137,166.04,166.02,8.3446819]
[1730446261139,8.3446819,166.07,166.02,8.3446819]
[1730446261140,3.0134,166.05,166.02,8.3446819]
[1730446262437,8.3446819,166.09,166.03,8.3446819]
[1730446262637,8.3446819,166.09,166.04,8.3446819]
[1730446263046,3.0131,166.07,166.04,8.3446819]
[1730446263643,8.3446819,166.1,166.04,8.3446819]
[1730446263850,3.0128,166.09,166.05,3.0133]
[1730446264045,3.0128,166.09,166.05,11.3579819]
[1730446265548,3.0125,166.1,166.07,8.3446819]
[1730446265944,10.9950819,166.12,166.07,8.3446819]
[1730446266551,9.7277819,166.12,166.07,8.3446819]
[1730446267053,3.0126,166.09,166.07,8.3446819]
[1730446269457,3.0126,166.1,166.07,8.3446819]
[1730446269657,1.3831,166.12,166.07,8.3446819]
[1730446270157,3.0126,166.1,166.07,8.3446819]
[1730446270357,1.3831,166.12,166.08,8.3446819]
[1730446270557,3.0119,166.13,166.11,8.3446819]
[1730446270746,9.7293819,166.16,166.11,8.3446819]
[1730446271057,9.7293819,166.16,166.12,11.3567819]
[1730446271058,3.0116,166.15,166.12,11.3567819]
[1730446271351,1.3847,166.16,166.12,11.3567819]
[1730446271352,8.3446819,166.18,166.12,8.3446819]
[1730446271553,3.0112,166.17,166.14,8.3446819]
[1730446271750,17.34761506,166.2,166.15,8.3446819]
[1730446271940,8.3446819,166.2,166.15,8.3446819]
[1730446272139,1.2935,166.21,166.16,8.3446819]
[1730446272346,3.0108,166.19,166.16,8.3446819]
[1730446272648,1.2935,166.21,166.16,8.3446819]
[1730446272857,3.011,166.18,166.16,8.3446819]
[1730446273245,3.011,166.18,166.15,8.3446819]
[1730446275655,9.6381819,166.21,166.16,8.3446819]
[1730446275863,3.0108,166.19,166.16,8.3446819]
[1730446276446,9.6381819,166.21,166.16,8.3446819]
[1730446276758,8.3446819,166.22,166.17,8.3446819]
[1730446277549,17.33884109,166.24,166.17,8.3446819]
[1730446277756,8.3446819,166.24,166.17,8.3446819]
[1730446277949,8.3446819,166.24,166.19,8.3446819]
[1730446278757,8.3446819,166.22,166.17,8.3446819]
[1730446278960,3.0107,166.2,166.17,8.3446819]
[1730446279258,8.3446819,166.21,166.16,3.0]
[1730446279565,8.3446819,166.19,166.15,3.0]
[1730446280858,3.0113,166.17,166.15,3.0]
[1730446281264,3.0113,166.17,166.14,8.3446819]
[1730446282061,3.0114,166.16,166.14,8.3446819]
[1730446282267,8.3446819,166.19,166.14,8.3446819]
[1730446282468,3.0113,166.17,166.14,8.3446819]
[1730446282963,8.3446819,166.19,166.14,8.3446819]
[1730446283167,3.0114,166.16,166.14,8.3446819]
[1730446283369,8.3446819,166.16,166.1,11.3446819]
[1730446283668,8.3446819,166.14,166.09,8.3446819]
[1730446286356,3.0124,166.11,166.09,8.3446819]
[1730446286970,3.0119,166.13,166.1,8.3446819]
[1730446287975,3.0118,166.14,166.1,8.3446819]
[1730446288271,8.3446819,166.15,166.1,11.3570819]
[1730446289367,8.3446819,166.14,166.09,8.3446819]
[1730446290070,3.0123,166.11,166.09,8.3446819]
[1730446291172,8.3446819,166.13,166.08,3.0]
[1730446291382,8.3446819,166.11,166.05,8.3446819]
[1730446291581,8.3446819,166.1,166.05,8.3446819]
[1730446291765,3.0,166.16,166.0,2.6501]
[1730446291766,3.0132,166.06,166.02,11.3584819]
[1730446291963,8.3446819,166.08,166.03,3.0]
[1730446292593,8.3446819,166.1,166.05,8.3446819]
[1730446293378,8.3446819,166.1,166.04,8.3446819]
[1730446293687,3.013,166.08,166.04,11.3581819]
[1730446294073,3.013,166.08,166.03,3.0]
[1730446294074,3.0131,166.07,166.03,11.3446819]
[1730446295365,3.0131,166.07,166.03,14.3583819]
[1730446297081,3.0133,166.06,166.03,8.3446819]
[1730446297285,8.3446819,166.08,166.02,8.3446819]
[1730446299075,3.0135,166.05,166.02,8.3446819]
[1730446299277,3.0135,166.05,166.02,11.3585819]
[1730446299686,8.3446819,166.08,166.02,11.3585819]
[1730446299880,2.6619,166.1,166.01,3.0]
[1730446299881,8.3446819,166.09,166.04,3.0134]
[1730446300091,2.6619,166.1,166.05,8.3446819]
[1730446300278,1.3699,166.1,166.05,8.3446819]
[1730446300788,3.013,166.08,166.05,8.3446819]
[1730446306189,3.0131,166.07,166.05,8.3446819]
[1730446306392,3.0131,166.07,166.03,11.3583819]
[1730446312181,3.0133,166.06,166.03,11.3583819]
[1730446312389,3.0133,166.06,166.03,8.3446819]
[1730446313387,3.0133,166.06,166.03,11.3583819]
[1730446314882,3.0128,166.09,166.05,11.3578819]
[1730446315088,8.3446819,166.13,166.07,8.3446819]
[1730446316596,3.0124,166.11,166.07,11.3575819]
[1730446316792,3.0124,166.11,166.09,8.3446819]
[1730446317002,8.3446819,166.15,166.09,8.3446819]
[1730446317299,3.012,166.13,166.09,11.3571819]
[1730446318101,3.012,166.13,166.1,8.3446819]
[1730446318802,3.0116,166.15,166.11,3.0121]
[1730446318999,3.0116,166.15,166.12,8.3446819]
[1730446319200,8.3446819,166.17,166.12,8.3446819]
[1730446319399,3.0111,166.18,166.14,11.3563819]
[1730446319594,8.3446819,166.19,166.14,8.3446819]
[1730446320301,3.0112,166.17,166.14,8.3446819]
[1730446323108,3.0112,166.17,166.15,8.3446819]
[1730446323302,3.0112,166.17,166.13,8.3446819]
[1730446323495,3.0112,166.17,166.13,11.3565819]
[1730446323893,3.0117,166.15,166.12,11.3446819]
[1730446324605,8.3446819,166.17,166.12,11.3446819]
[1730446324802,3.0114,166.16,166.13,8.3446819]
[1730446325199,8.3446819,166.19,166.13,8.3446819]
[1730446325403,8.3446819,166.19,166.12,3.0]
[1730446325404,8.3446819,166.2,166.15,8.3446819]
[1730446325801,3.0111,166.18,166.15,8.3446819]
[1730446327118,3.0111,166.18,166.14,11.3562819]
[1730446328096,3.0108,166.2,166.16,3.0113]
[1730446328611,8.3446819,166.22,166.15,8.3446819]
[1730446329912,8.3446819,166.2,166.15,8.3446819]
[1730446330413,3.0109,166.19,166.15,11.3561819]
[1730446330603,8.3446819,166.17,166.12,8.3446819]
[1730446330802,8.3446819,166.17,166.08,1.3791]
[1730446330803,3.0117,166.15,166.11,11.3567819]
[1730446331018,3.0117,166.15,166.11,14.3567819]
[1730446332206,3.0117,166.15,166.12,8.3446819]
[1730446335620,3.0117,166.15,166.12,11.3567819]
[1730446339619,3.0113,166.17,166.13,11.3565819]
[1730446339828,8.3446819,166.21,166.15,8.3446819]
[1730446340215,8.3446819,166.21,166.16,8.3446819]
[1730446341612,3.0108,166.2,166.16,11.3559819]
[1730446342117,8.3446819,166.22,166.16,8.3446819]
[1730446343217,8.3446819,166.22,166.16,11.3559819]
[1730446343218,3.0108,166.2,166.16,11.3559819]
[1730446346427,8.3446819,166.24,166.19,8.3446819]
[1730446346620,3.0102,166.23,166.19,11.3553819]
[1730446347632,3.0104,166.22,166.19,8.3446819]
[1730446350432,3.0106,166.2,166.17,12.6813819]
[1730446350633,8.3446819,166.23,166.17,12.6813819]
[1730446351023,3.0105,166.21,166.17,12.6813819]
[1730446351736,3.0109,166.19,166.16,11.3446819]
[1730446351925,3.0109,166.19,166.16,8.3446819]
[1730446352121,2.5919,166.26,166.13,8.3446819]
[1730446352320,8.3446819,166.18,166.14,2.98]
[1730446353237,3.0113,166.17,166.14,2.98]
[1730446353422,3.0113,166.17,166.14,11.3246819]
[1730446353825,8.3446819,166.19,166.14,11.3246819]
[1730446354032,3.0111,166.18,166.14,14.3363819]
[1730446354528,8.3446819,166.19,166.14,11.3246819]
[1730446354735,3.0114,166.16,166.14,11.3246819]
[1730446356230,3.0115,166.15,166.14,2.98]
[1730446356434,8.3446819,166.15,166.1,8.3446819]
[1730446356839,3.0119,166.13,166.1,8.3446819]
[1730446357737,3.0117,166.14,166.1,11.3570819]
[1730446359337,8.3446819,166.15,166.1,8.3446819]
[1730446359338,3.0119,166.13,166.1,8.3446819]
[1730446359937,3.0119,166.13,166.09,12.6650819]
[1730446360252,3.0123,166.11,166.07,11.3574819]
[1730446361348,3.0123,166.11,166.07,3.0128]
[1730446361544,8.3446819,166.12,166.08,11.3574819]
[1730446361749,11.3567819,166.12,166.08,11.3574819]
[1730446363643,3.0121,166.12,166.08,11.3574819]
[1730446363852,8.3446819,166.15,166.09,8.3446819]
[1730446365041,8.3446819,166.14,166.09,8.3446819]
[1730446365251,3.0119,166.13,166.09,11.3571819]
[1730446366935,3.0119,166.13,166.09,3.0125]
[1730446367138,8.3446819,166.14,166.06,4.3163]
[1730446367139,3.0126,166.1,166.06,11.3577819]
[1730446367344,2.5898,166.17,166.05,176.9982119]
[1730446367345,8.3446819,166.09,166.05,176.9982119]
[1730446367549,8.3446819,166.09,166.05,179.9782119]
[1730446368361,11.3573819,166.09,166.05,182.9915119]
[1730446369165,3.0127,166.09,166.05,182.9915119]
[1730446369465,3.0127,166.09,166.06,8.3446819]
[1730446369666,3.0127,166.09,166.06,11.3578819]
[1730446370666,8.3446819,166.13,166.08,8.3446819]
[1730446371361,11.3570819,166.11,166.07,3.0129]
[1730446371676,8.3446819,166.11,166.07,3.0129]
[1730446371875,2.5898,166.17,166.05,167.35203]
[1730446371876,3.0128,166.08,166.05,167.35203]
[1730446372960,3.0128,166.08,166.05,170.36533]
[1730446373165,8.3446819,166.09,166.05,167.35203]
[1730446373373,3.0129,166.08,166.05,167.35203]
[1730446373866,11.3578819,166.07,166.05,167.35203]
[1730446374078,8.3446819,166.07,166.05,167.35203]
[1730446374468,3.0132,166.06,166.05,167.35203]
[1730446375963,11.3578819,166.06,166.05,167.35203]
[1730446377169,3.0132,166.06,166.05,167.35203]
[1730446379876,11.3578819,166.06,166.05,167.35203]
[1730446381082,3.0132,166.06,166.05,167.35203]
[1730446381274,8.3446819,166.07,166.05,167.35203]
[1730446382172,3.0132,166.06,166.05,167.35203]
[1730446383281,8.3446819,166.07,166.05,167.35203]
[1730446383479,11.3577819,166.07,166.05,167.35203]
[1730446384184,3.0132,166.06,166.05,167.35203]
[1730446384681,11.3578819,166.06,166.05,167.35203]
[1730446386181,3.013,166.07,166.05,167.35203]
[1730446386490,8.3446819,166.08,166.05,167.35203]
[1730446387283,3.013,166.07,166.05,167.35203]
[1730446391686,3.0129,166.08,166.05,170.36533]
[1730446391880,8.3446819,166.09,166.05,170.36533]
[1730446392193,2.6119,166.16,166.05,175.6967119]
[1730446392194,8.3446819,166.11,166.05,175.6967119]
[1730446392481,8.3446819,166.11,166.05,178.6767119]
[1730446392676,8.3446819,166.12,166.07,8.3446819]
[1730446392875,3.0123,166.11,166.07,11.3575819]
[1730446393182,8.3446819,166.13,166.08,8.3446819]
[1730446393680,3.0121,166.12,166.08,11.3573819]
[1730446393900,2.6119,166.16,166.06,1.2657]
[1730446393901,8.3446819,166.09,166.06,1.2657]
[1730446394080,8.3446819,166.09,166.05,170.33203]
[1730446395282,8.3446819,166.07,166.05,167.35203]
[1730446395481,2.6119,166.16,166.05,167.35203]
[1730446395482,8.3446819,166.06,166.05,167.35203]
[1730446396989,11.3578819,166.06,166.05,167.35203]
[1730446397370,11.3578819,166.06,166.05,98.59557572]
[1730446397991,11.3578819,166.06,166.05,97.51437572]
[1730446400696,16.04324539,166.06,166.05,97.51437572]
[1730446401394,3.0132,166.06,166.05,97.51437572]
[1730446403584,3.0132,166.06,166.01,3.014]
[1730446404889,3.0134,166.05,166.01,3.014]
[1730446409591,13.03004539,166.1,165.99,18.70604539]
[1730446409904,2.98,166.12,166.02,13.03004539]
[1730446410088,3.013,166.08,166.04,3.0135]
[1730446410289,16.01004539,166.13,165.99,18.70604539]
[1730446410290,13.03004539,166.1,165.99,18.70604539]
[1730446410797,3.0133,166.06,166.01,3.014]
[1730446413502,3.0133,166.06,165.99,18.70604539]
[1730446413805,3.0133,166.06,166.02,3.0138]
[1730446416003,3.013,166.07,166.03,3.0136]
[1730446416304,3.013,166.07,166.03,5.9936]
[1730446416900,3.0128,166.08,166.04,3.0134]
[1730446420405,3.0128,166.08,166.04,11.34660982]
[1730446420714,8.33320982,166.1,166.04,11.34660982]
[1730446420715,3.013,166.07,166.04,11.34660982]
[1730446423114,3.013,166.08,166.05,3.0133]
[1730446430925,3.013,166.08,166.04,11.34670982]
[1730446440228,3.013,166.08,166.04,11.34660982]
[1730446440431,8.33320982,166.08,166.03,11.31320982]
[1730446442128,8.33320982,166.08,165.99,2.696]
[1730446442129,8.33320982,166.07,166.02,8.33320982]
[1730446442327,8.33320982,166.06,166.02,8.33320982]
[1730446442816,8.33320982,166.06,166.0,8.33320982]
[1730446443623,3.0136,166.04,166.0,11.34730982]
[1730446443832,8.33320982,166.07,166.02,8.33320982]
[1730446444630,3.0134,166.05,166.02,8.33320982]
[1730446445931,3.0136,166.04,166.02,8.33320982]
[1730446448533,3.0133,166.06,166.03,8.33320982]
[1730446448741,3.0133,166.06,166.04,8.33320982]
[1730446449130,8.33320982,166.09,166.04,8.33320982]
[1730446449746,3.0131,166.07,166.04,8.33320982]
[1730446449933,8.33320982,166.06,166.03,2.98]
[1730446450242,8.33320982,166.06,166.01,8.33320982]
[1730446450243,3.0135,166.04,166.01,8.33320982]
[1730446450433,8.33320982,166.06,166.01,8.33320982]
[1730446450641,8.33320982,166.08,166.03,8.33320982]
[1730446450936,3.0134,166.05,166.03,8.33320982]
[1730446451939,3.0134,166.05,166.01,11.34720982]
[1730446453140,3.0134,166.05,166.02,8.33320982]
[1730446460840,3.0134,166.05,166.01,11.34720982]
[1730446461547,8.33320982,166.07,166.01,11.34720982]
[1730446462244,3.0138,166.03,166.0,2.98]
[1730446462447,8.33320982,166.03,165.99,1.3171]
[1730446462643,8.33320982,166.02,165.98,2.98]
[1730446463243,8.33320982,166.03,165.98,5.9946]
[1730446464042,3.0142,166.01,165.97,11.34800982]
[1730446466249,8.33320982,166.03,165.97,8.33320982]
[1730446466453,3.0145,165.99,165.96,2.98]
[1730446466637,8.33320982,166.02,165.97,8.33320982]
[1730446467944,8.33320982,166.02,165.97,11.34790982]
[1730446467945,3.0142,166.01,165.97,11.34790982]
[1730446468137,3.0142,166.01,165.96,2.98]
[1730446468138,8.33320982,166.01,165.96,2.98]
[1730446468748,3.0145,165.99,165.96,2.98]
[1730446470844,3.0145,165.99,165.96,5.995]
[1730446472451,3.0145,165.99,165.97,8.33320982]
[1730446477655,8.33320982,166.02,165.97,11.34790982]
[1730446477855,8.33320982,166.03,165.98,8.33320982]
[1730446478968,8.33320982,166.03,165.98,11.34780982]
[1730446478969,3.0142,166.01,165.98,11.34780982]
[1730446481074,3.014,166.02,165.98,11.34780982]
[1730446481755,8.33320982,166.03,165.98,11.34780982]
[1730446481957,3.0141,166.01,165.98,11.34780982]
[1730446482858,3.0136,166.04,166.0,3.0142]
[1730446483057,3.0136,166.04,166.01,8.33320982]
[1730446483973,3.0138,166.03,166.01,8.33320982]
[1730446484755,3.0138,166.03,166.0,14.32740982]
[1730446484960,3.0138,166.03,166.0,5.9942]
[1730446488466,3.0138,166.03,166.0,14.32740982]
[1730446488671,4.3497,166.09,166.0,14.32740982]
[1730446488672,3.0136,166.04,166.0,14.32740982]
[1730446488976,8.33320982,166.06,166.0,11.31320982]
[1730446489168,8.33320982,166.07,166.03,8.33320982]
[1730446489763,3.0132,166.06,166.03,8.33320982]
[1730446490161,8.33320982,166.07,166.03,8.33320982]
[1730446490775,3.0132,166.06,166.03,8.33320982]
[1730446491977,8.33320982,166.09,166.03,8.33320982]
[1730446492182,8.33320982,166.1,166.06,8.33320982]
[1730446492769,8.33320982,166.13,166.08,8.33320982]
[1730446493182,8.33320982,166.13,166.08,11.34590982]
[1730446493475,8.33320982,166.13,166.08,8.33320982]
[1730446493867,3.0124,166.11,166.08,8.33320982]
[1730446494376,63.34156778,166.15,166.08,11.31320982]
[1730446494780,3.0118,166.14,166.1,11.34550982]
[1730446494978,3.0118,166.14,166.1,8.33320982]
[1730446495683,3.0118,166.14,166.1,11.34560982]
[1730446497575,3.0118,166.14,166.11,8.33320982]
[1730446500987,3.0113,166.17,166.13,8.33320982]
[1730446501181,17.34403471,166.21,166.15,8.33320982]
[1730446501388,9.01082489,166.2,166.15,8.33320982]
[1730446501682,8.33320982,166.21,166.15,8.33320982]
[1730446501884,3.0108,166.19,166.15,11.34470982]
[1730446504383,8.33320982,166.21,166.17,8.33320982]
[1730446504579,3.0107,166.2,166.17,8.33320982]
[1730446505285,3.0105,166.21,166.18,8.33320982]
[1730446506503,8.33320982,166.24,166.18,8.33320982]
[1730446506781,8.33320982,166.26,166.2,8.33320982]
[1730446507102,3.0101,166.23,166.2,11.31320982]
[1730446510293,8.33320982,166.26,166.2,11.31320982]
[1730446510486,3.0099,166.24,166.2,14.32380982]
[1730446510685,8.33320982,166.26,166.21,8.33320982]
[1730446510881,3.0097,166.26,166.21,11.34350982]